bitfinex-derivatives/quotes_BTCF0:USTF0_20250527
["timestamp","ask_amount","ask_price","bid_price","bid_amount"]
[1748363711167,0.28882686,110220.0,110210.0,0.62974809]
[1748363711372,0.23672686,110220.0,110210.0,0.86220437]
[1748363711673,0.23572686,110220.0,110210.0,0.86220437]
[1748363712076,0.28502686,110220.0,110210.0,0.91050437]
[1748363712868,0.28502686,110220.0,110210.0,0.67804809]
[1748363713675,0.64582686,110220.0,110210.0,0.65814121]
[1748363713885,0.64582686,110220.0,110210.0,0.51805202]
[1748363714379,0.28502686,110220.0,110210.0,0.51805202]
[1748363715078,0.28502686,110220.0,110210.0,0.87885202]
[1748363715277,0.28502686,110220.0,110210.0,1.614379]
[1748363715278,0.00213626,110220.0,110210.0,1.614379]
[1748363715575,0.18350686,110220.0,110210.0,1.66248258]
[1748363715782,0.18350686,110220.0,110210.0,2.09260258]
[1748363716174,0.18362686,110220.0,110210.0,2.09260258]
[1748363716374,0.18350686,110220.0,110210.0,2.03582525]
[1748363716574,0.18362686,110220.0,110210.0,2.05889237]
[1748363716775,0.18362686,110220.0,110210.0,2.04444117]
[1748363716980,0.23492686,110220.0,110210.0,2.04444117]
[1748363717285,0.64552686,110220.0,110210.0,1.25352117]
[1748363717485,0.28472686,110220.0,110210.0,1.38186489]
[1748363717989,0.28472686,110220.0,110210.0,1.38187263]
[1748363718580,0.28472686,110220.0,110210.0,1.67377263]
[1748363719391,0.28472686,110220.0,110210.0,1.61705907]
[1748363719695,0.28472686,110220.0,110210.0,1.52632707]
[1748363719878,0.05355626,110220.0,110210.0,1.75878335]
[1748363720191,0.23492696,110220.0,110210.0,1.82994811]
[1748363720488,0.45949381,110250.0,110230.0,0.1813542]
[1748363720489,0.2720198,110240.0,110230.0,0.1813542]
[1748363720797,0.3211198,110240.0,110230.0,1.38840885]
[1748363721089,0.3212398,110240.0,110230.0,1.38840885]
[1748363721696,0.3252398,110240.0,110230.0,1.38840885]
[1748363721893,0.00412,110240.0,110230.0,1.79912484]
[1748363722187,0.00412,110240.0,110230.0,1.52160978]
[1748363722576,0.004,110240.0,110230.0,1.52160978]
[1748363722781,0.00412,110240.0,110230.0,1.52160978]
[1748363722992,0.00412,110240.0,110230.0,1.5350577]
[1748363723201,0.00013626,110250.0,110240.0,0.1813377]
[1748363723392,0.00013626,110250.0,110240.0,1.90178924]
[1748363723602,0.00025626,110250.0,110240.0,1.99245867]
[1748363724000,0.00025626,110250.0,110240.0,1.96966203]
[1748363724303,0.00013626,110250.0,110240.0,1.96966203]
[1748363724496,0.28064941,110270.0,110260.0,0.1813048]
[1748363724702,0.28064941,110270.0,110260.0,0.84465895]
[1748363724892,0.28064941,110270.0,110260.0,0.89665895]
[1748363725292,0.28064941,110270.0,110260.0,0.90584556]
[1748363725697,0.28364941,110270.0,110260.0,0.90584556]
[1748363726005,0.28564941,110270.0,110260.0,0.90584556]
[1748363726203,0.28564941,110270.0,110260.0,0.90627598]
[1748363726599,0.28564941,110270.0,110260.0,0.89208032]
[1748363727298,0.28064941,110270.0,110260.0,0.71077552]
[1748363727605,0.28064941,110270.0,110260.0,0.89208032]
[1748363730390,0.28064941,110270.0,110260.0,1.18398032]
[1748363732411,0.28064941,110270.0,110260.0,0.95152404]
[1748363732996,0.28064941,110270.0,110260.0,0.95849587]
[1748363733196,0.71048941,110270.0,110260.0,0.95849587]
[1748363733803,0.71048941,110270.0,110260.0,1.19095215]
[1748363734308,0.71048941,110270.0,110260.0,0.95849587]
[1748363734605,0.71048941,110270.0,110260.0,1.19095215]
[1748363734806,0.71048941,110270.0,110260.0,1.19091274]
[1748363735205,0.28064941,110270.0,110260.0,1.19091274]
[1748363735906,0.28064941,110270.0,110260.0,1.18504954]
[1748363736202,0.28064941,110270.0,110260.0,1.18947185]
[1748363736705,0.28064941,110270.0,110260.0,1.16828338]
[1748363737604,0.28064941,110270.0,110260.0,1.21074704]
[1748363738909,0.28064941,110270.0,110260.0,1.10074704]
[1748363739110,0.28064941,110270.0,110260.0,1.10076869]
[1748363739697,0.71040941,110270.0,110260.0,1.10076869]
[1748363740107,0.71040941,110270.0,110260.0,1.14916869]
[1748363740304,0.05056101,110270.0,110260.0,1.99972869]
[1748363740607,0.05056101,110270.0,110260.0,2.2414793]
[1748363740810,0.05068101,110270.0,110260.0,2.2414793]
[1748363741105,0.05068101,110270.0,110260.0,2.25567496]
[1748363741697,0.05068101,110270.0,110260.0,2.19901564]
[1748363742503,0.05068101,110270.0,110260.0,2.25567496]
[1748363743603,0.05068101,110270.0,110260.0,2.34636696]
[1748363743807,0.00136101,110270.0,110260.0,2.28970764]
[1748363744008,0.00148101,110270.0,110260.0,2.28970764]
[1748363744604,0.00148101,110270.0,110260.0,2.13382499]
[1748363744908,0.00148101,110270.0,110260.0,2.36141807]
[1748363744909,0.05438101,110270.0,110260.0,2.36141807]
[1748363745503,0.05438101,110270.0,110260.0,2.27072607]
[1748363746103,0.05438101,110270.0,110260.0,2.27272607]
[1748363746713,0.10608101,110270.0,110260.0,2.27272607]
[1748363751423,0.28736941,110270.0,110260.0,2.27272607]
[1748363751611,0.28736941,110270.0,110260.0,2.20189564]
[1748363751806,0.28736941,110270.0,110260.0,2.1815668]
[1748363752122,0.10608101,110270.0,110260.0,2.20199881]
[1748363753525,0.28736941,110270.0,110260.0,2.20171881]
[1748363753709,0.10608101,110270.0,110260.0,2.20171881]
[1748363754006,0.10608101,110270.0,110260.0,1.97512573]
[1748363754209,0.10608101,110270.0,110260.0,2.20171881]
[1748363754408,0.10608101,110270.0,110260.0,1.44144573]
[1748363754604,0.28736931,110270.0,110260.0,1.18476573]
[1748363754810,0.28736931,110270.0,110260.0,1.20683881]
[1748363755010,0.28736931,110270.0,110260.0,1.55284147]
[1748363755206,0.28736931,110270.0,110260.0,1.19204147]
[1748363755420,0.28736931,110270.0,110260.0,1.18761916]
[1748363756322,0.28736931,110270.0,110260.0,1.19204147]
[1748363756521,0.28736931,110270.0,110260.0,1.55284147]
[1748363756730,0.05438101,110270.0,110260.0,1.51284147]
[1748363757026,0.0529,110270.0,110260.0,1.76175881]
[1748363757211,0.05302,110270.0,110260.0,1.86143985]
[1748363757625,0.0529,110270.0,110260.0,1.86143985]
[1748363757822,0.05043626,110280.0,110270.0,0.1812884]
[1748363758022,0.05043626,110280.0,110270.0,1.55803156]
[1748363758216,0.05055626,110280.0,110270.0,1.55803156]
[1748363758417,0.05043626,110280.0,110270.0,1.50981994]
[1748363758623,0.05055626,110280.0,110270.0,1.50981994]
[1748363759221,0.05055626,110280.0,110270.0,1.55801043]
[1748363759917,0.05055626,110280.0,110270.0,1.84991043]
[1748363760318,0.05055626,110280.0,110270.0,1.84966079]
[1748363760717,0.00025626,110280.0,110270.0,1.84966079]
[1748363760923,0.00013626,110280.0,110270.0,1.84966079]
[1748363761127,0.09855626,110280.0,110270.0,1.84966079]
[1748363762825,0.09855626,110280.0,110270.0,1.85166079]
[1748363763525,0.00025626,110280.0,110270.0,2.50769387]
[1748363763729,0.00025626,110280.0,110270.0,2.45951646]
[1748363763925,0.00013626,110280.0,110270.0,2.23392338]
[1748363764141,0.00025626,110280.0,110270.0,2.23392338]
[1748363764519,0.09974374,110300.0,110290.0,0.1812555]
[1748363764722,0.0536605,110310.0,110300.0,0.1812391]
[1748363765022,0.94598729,110340.0,110330.0,0.1811898]
[1748363765220,1.79292519,110340.0,110330.0,0.35813019]
[1748363765524,1.79292519,110340.0,110330.0,0.53931999]
[1748363765731,1.36360519,110340.0,110330.0,0.53931999]
[1748363766031,1.79304519,110340.0,110330.0,0.5392849]
[1748363766235,1.79296519,110340.0,110330.0,0.5879849]
[1748363766426,1.79284519,110340.0,110330.0,0.5879849]
[1748363766633,1.79596519,110340.0,110330.0,0.60160359]
[1748363766833,1.79596519,110340.0,110330.0,0.59960359]
[1748363767232,1.00580519,110340.0,110330.0,0.62792151]
[1748363767429,0.90830729,110340.0,110330.0,0.96040359]
[1748363767631,0.50071539,110340.0,110330.0,1.06291594]
[1748363767831,0.50059539,110340.0,110330.0,1.25539795]
[1748363768019,0.50071539,110340.0,110330.0,1.35951795]
[1748363768222,0.60111539,110340.0,110330.0,1.30275559]
[1748363768629,0.60111539,110340.0,110330.0,1.19859808]
[1748363768822,0.60111539,110340.0,110330.0,1.35948044]
[1748363769031,0.60011539,110340.0,110330.0,1.35948044]
[1748363769234,0.60011539,110340.0,110330.0,1.34513974]
[1748363769440,0.59999539,110340.0,110330.0,1.12513974]
[1748363769628,0.60011539,110340.0,110330.0,1.12513974]
[1748363769829,0.59811539,110340.0,110330.0,1.12513974]
[1748363770134,0.59811539,110340.0,110330.0,1.13258527]
[1748363770540,0.31552609,110340.0,110330.0,1.42448527]
[1748363770835,0.31640609,110340.0,110330.0,1.85207281]
[1748363771043,0.31652609,110340.0,110330.0,1.83195321]
[1748363771244,0.31652609,110340.0,110330.0,1.97949667]
[1748363771429,0.31652609,110340.0,110330.0,1.80853743]
[1748363771834,0.31652609,110340.0,110330.0,1.75204985]
[1748363772029,0.31452609,110340.0,110330.0,1.75204985]
[1748363772232,0.3608,110370.0,110360.0,0.1811406]
[1748363772440,0.1856402,110380.0,110370.0,0.1811242]
[1748363772739,0.3729815,110380.0,110370.0,0.64657414]
[1748363772925,0.3729815,110380.0,110370.0,0.6264775]
[1748363773125,0.00012,110380.0,110370.0,0.6264775]
[1748363773342,0.2010917,110390.0,110380.0,0.1811079]
[1748363773545,0.2525917,110390.0,110380.0,0.46321693]
[1748363773747,0.3495917,110390.0,110380.0,0.79634474]
[1748363773942,0.1685,110390.0,110380.0,1.20854474]
[1748363774140,0.02012,110390.0,110380.0,1.26729134]
[1748363774445,0.6623786,110420.0,110410.0,0.1810587]
[1748363774626,0.8171152,110420.0,110410.0,0.66720467]
[1748363774829,0.7184152,110420.0,110410.0,0.78350179]
[1748363775031,0.3576152,110420.0,110410.0,0.78350179]
[1748363775230,0.3577352,110420.0,110410.0,0.78350179]
[1748363775445,0.3576152,110420.0,110410.0,0.67942179]
[1748363775648,0.7185352,110420.0,110410.0,0.1635424]
[1748363775835,1.40809584,110420.0,110410.0,0.03890886]
[1748363776032,0.1810587,110410.0,110400.0,0.00013626]
[1748363776232,0.9931587,110410.0,110400.0,0.00013626]
[1748363776738,0.9931587,110410.0,110400.0,0.18121136]
[1748363777141,1.2222387,110410.0,110400.0,0.19121136]
[1748363777327,1.0722387,110410.0,110400.0,0.19121136]
[1748363777534,0.6431587,110410.0,110400.0,0.47165917]
[1748363777740,0.46222,110410.0,110400.0,0.47165917]
[1748363777946,0.10142,110410.0,110400.0,0.89485917]
[1748363778138,0.05152,110410.0,110400.0,1.23595629]
[1748363778339,0.0514,110410.0,110400.0,1.02345917]
[1748363778545,0.2324585,110410.0,110400.0,0.54796768]
[1748363778746,0.2795785,110410.0,110400.0,0.78001549]
[1748363779438,0.2795785,110410.0,110400.0,1.14081549]
[1748363780738,0.2795785,110410.0,110400.0,1.43271549]
[1748363780932,0.2795785,110410.0,110400.0,1.07191549]
[1748363781137,0.2795785,110410.0,110400.0,1.43271549]
[1748363781339,0.00012,110410.0,110400.0,1.69271549]
[1748363781540,0.1811785,110410.0,110400.0,1.51271549]
[1748363781839,0.2288585,110410.0,110400.0,1.51271549]
[1748363782047,0.2769785,110410.0,110400.0,1.51271549]
[1748363782439,0.2769785,110410.0,110400.0,1.94147549]
[1748363782935,0.2769785,110410.0,110400.0,0.60365258]
[1748363783135,1.0966985,110410.0,110400.0,0.02445258]
[1748363783332,1.3966985,110410.0,110400.0,0.01113626]
[1748363784241,0.1810913,110390.0,110380.0,0.30412176]
[1748363784439,0.1810913,110390.0,110380.0,0.4249869]
[1748363784639,0.8402913,110390.0,110380.0,0.24388]
[1748363784841,0.9083713,110390.0,110380.0,0.24388]
[1748363785147,0.7583713,110390.0,110380.0,0.4249877]
[1748363785342,1.1191713,110390.0,110380.0,0.4249877]
[1748363785645,1.1191713,110390.0,110380.0,0.4279877]
[1748363785846,1.1191713,110390.0,110380.0,0.44178452]
[1748363786050,1.1191713,110390.0,110380.0,0.73761165]
[1748363786453,1.1191713,110390.0,110380.0,0.73761813]
[1748363786747,1.0691713,110390.0,110380.0,0.84461813]
[1748363786946,0.7083713,110390.0,110380.0,0.84761813]
[1748363787147,0.2796113,110390.0,110380.0,0.84761813]
[1748363787347,0.2796113,110390.0,110380.0,0.84761801]
[1748363787543,0.2796113,110390.0,110380.0,0.8476194]
[1748363787738,0.2796113,110390.0,110380.0,0.86443571]
[1748363787938,0.2796113,110390.0,110380.0,0.76055571]
[1748363788543,0.2796113,110390.0,110380.0,0.78155674]
[1748363788745,0.2796113,110390.0,110380.0,0.54950893]
[1748363789145,0.2796113,110390.0,110380.0,0.78156663]
[1748363789449,0.6404113,110390.0,110380.0,0.36831779]
[1748363789654,0.6908113,110390.0,110380.0,0.18721009]
[1748363790145,0.6908113,110390.0,110380.0,0.35450336]
[1748363790351,0.6908113,110390.0,110380.0,0.36832485]
[1748363790554,0.6908113,110390.0,110380.0,0.17363994]
[1748363791354,0.7008113,110390.0,110380.0,0.35474764]
[1748363791660,1.1414033,110390.0,110380.0,0.17363994]
[1748363791843,1.2452833,110390.0,110380.0,0.15383928]
[1748363792151,1.2452833,110390.0,110380.0,0.15383951]
[1748363792345,1.2452833,110390.0,110380.0,0.15384816]
[1748363792649,1.6741233,110390.0,110380.0,0.15384827]
[1748363792855,1.1414033,110390.0,110380.0,0.15384827]
[1748363793046,1.1414033,110390.0,110380.0,0.33495597]
[1748363793047,1.5712433,110390.0,110380.0,0.33495597]
[1748363793247,1.5722433,110390.0,110380.0,0.17374691]
[1748363794344,1.5722433,110390.0,110380.0,0.19491635]
[1748363794647,0.8828113,110390.0,110380.0,0.36217578]
[1748363794845,0.2814913,110390.0,110380.0,0.63235433]
[1748363795147,0.1004,110390.0,110380.0,0.77287525]
[1748363795352,0.52924,110390.0,110380.0,1.14755151]
[1748363795550,0.7103313,110390.0,110380.0,1.13367525]
[1748363795753,0.7104513,110390.0,110380.0,1.1053579]
[1748363795954,0.6629313,110390.0,110380.0,1.10535778]
[1748363796156,0.6630513,110390.0,110380.0,1.10535778]
[1748363796454,0.1832113,110390.0,110380.0,1.26569453]
[1748363797154,0.2302113,110390.0,110380.0,1.26569453]
[1748363797340,0.2302113,110390.0,110380.0,1.24577278]
[1748363797545,0.2302113,110390.0,110380.0,1.26571403]
[1748363797745,0.2781113,110390.0,110380.0,1.25183351]
[1748363797940,0.2781113,110390.0,110380.0,1.26572871]
[1748363798244,0.2781113,110390.0,110380.0,1.26573417]
[1748363798847,0.2781113,110390.0,110380.0,1.26573546]
[1748363799041,0.2781113,110390.0,110380.0,0.90493546]
[1748363799459,0.2781113,110390.0,110380.0,0.67288765]
[1748363800254,0.2781113,110390.0,110380.0,1.26575258]
[1748363800558,0.2302113,110390.0,110380.0,1.26575258]
[1748363800759,0.1822113,110390.0,110380.0,1.28025507]
[1748363801452,0.1822113,110390.0,110380.0,1.28026197]
[1748363801756,0.1822113,110390.0,110380.0,1.2803055]
[1748363801953,0.1822113,110390.0,110380.0,1.2703055]
[1748363802156,0.1822113,110390.0,110380.0,1.48030549]
[1748363802362,0.00112,110390.0,110380.0,1.90906549]
[1748363802652,0.1822113,110390.0,110380.0,1.67701768]
[1748363802856,0.1822113,110390.0,110380.0,1.90906549]
[1748363803058,0.001,110390.0,110380.0,1.89513953]
[1748363803262,0.00112,110390.0,110380.0,1.90907195]
[1748363803444,0.00112,110390.0,110380.0,1.91007195]
[1748363803842,0.10153626,110400.0,110390.0,0.1810913]
[1748363804050,0.00013626,110400.0,110390.0,1.18185631]
[1748363804461,0.00013626,110400.0,110390.0,1.25281555]
[1748363804656,0.00025626,110400.0,110390.0,1.25281555]
[1748363805355,0.18121106,110400.0,110390.0,1.25281555]
[1748363805551,0.18133106,110400.0,110390.0,1.25281555]
[1748363805857,0.18133106,110400.0,110390.0,1.25276828]
[1748363806263,0.18133106,110400.0,110390.0,0.87761137]
[1748363806652,0.18133106,110400.0,110390.0,1.23841137]
[1748363807154,0.18133106,110400.0,110390.0,1.22453394]
[1748363807360,0.18133106,110400.0,110390.0,1.23840878]
[1748363807658,0.00025626,110400.0,110390.0,1.17737929]
[1748363808352,0.00025626,110400.0,110390.0,1.17737919]
[1748363808554,0.00025626,110400.0,110390.0,1.35737919]
[1748363808950,0.00025626,110400.0,110390.0,1.42833843]
[1748363808951,0.00013626,110400.0,110390.0,1.42833843]
[1748363809150,0.00025626,110400.0,110390.0,1.42833843]
[1748363809468,0.00025626,110400.0,110390.0,1.35737901]
[1748363809656,0.00025626,110400.0,110390.0,1.45688546]
[1748363809950,0.00013626,110400.0,110390.0,1.45688598]
[1748363810155,0.00025626,110400.0,110390.0,1.45688407]
[1748363810753,0.00025626,110400.0,110390.0,1.45688452]
[1748363811853,0.00025626,110400.0,110390.0,1.45788452]
[1748363812355,0.00437677,110400.0,110390.0,1.45788452]
[1748363813150,0.00437677,110400.0,110390.0,1.45988452]
[1748363813350,0.00449677,110400.0,110390.0,1.45988452]
[1748363813553,0.00449677,110400.0,110390.0,1.55988127]
[1748363813753,0.00449677,110400.0,110390.0,1.44600875]
[1748363813953,0.00449677,110400.0,110390.0,1.45998239]
[1748363814356,0.00449677,110400.0,110390.0,1.55997177]
[1748363814659,0.00449677,110400.0,110390.0,1.45997177]
[1748363814864,0.00449677,110400.0,110390.0,1.4599688]
[1748363816263,0.00449677,110400.0,110390.0,1.45996731]
[1748363816672,0.00449677,110400.0,110390.0,1.36046086]
[1748363817050,0.00449677,110400.0,110390.0,1.4311567]
[1748363817255,0.00449677,110400.0,110390.0,1.41718752]
[1748363817459,0.00449677,110400.0,110390.0,1.43115542]
[1748363817857,0.00449677,110400.0,110390.0,1.94950752]
[1748363818053,0.00449677,110400.0,110390.0,1.96347534]
[1748363818560,0.00449677,110400.0,110390.0,1.73140975]
[1748363818756,0.00449677,110400.0,110390.0,1.96345756]
[1748363820168,0.00449677,110400.0,110390.0,1.95742118]
[1748363821266,0.00449677,110400.0,110390.0,1.95741521]
[1748363821663,0.23587167,110400.0,110390.0,1.42509521]
[1748363821853,0.28647167,110400.0,110390.0,1.42509521]
[1748363822160,0.28647167,110400.0,110390.0,1.21885945]
[1748363822364,0.28647167,110400.0,110390.0,1.21885941]
[1748363822663,0.28647167,110400.0,110390.0,1.20489336]
[1748363822862,0.10527677,110400.0,110390.0,1.11510467]
[1748363823161,0.28647167,110400.0,110390.0,1.21886467]
[1748363823569,0.28647167,110400.0,110390.0,1.21887076]
[1748363823766,0.10539677,110400.0,110390.0,1.21887078]
[1748363823966,0.10539677,110400.0,110390.0,1.22464774]
[1748363824360,0.00437677,110400.0,110390.0,1.22465486]
[1748363824560,0.00437677,110400.0,110390.0,1.55189414]
[1748363825059,0.05547677,110400.0,110390.0,1.55189414]
[1748363825263,0.05559677,110400.0,110390.0,1.55189414]
[1748363825461,0.05547677,110400.0,110390.0,1.55189414]
[1748363825771,0.05547677,110400.0,110390.0,1.72216526]
[1748363825954,0.05547677,110400.0,110390.0,1.65140059]
[1748363826159,0.05559677,110400.0,110390.0,1.65141689]
[1748363826360,0.10549677,110400.0,110390.0,1.65141689]
[1748363826555,0.10549677,110400.0,110390.0,1.65152181]
[1748363826967,0.10549677,110400.0,110390.0,1.31597342]
[1748363827170,0.28657167,110400.0,110390.0,1.65153076]
[1748363827362,0.28657167,110400.0,110390.0,1.08590614]
[1748363827670,0.28657167,110400.0,110390.0,1.00048437]
[1748363827872,0.28657167,110400.0,110390.0,1.00048445]
[1748363828657,0.64737167,110400.0,110390.0,0.72062322]
[1748363828865,1.20581167,110400.0,110390.0,0.22370364]
[1748363829060,1.20581167,110400.0,110390.0,0.19546917]
[1748363829264,1.50639567,110400.0,110390.0,0.2095616]
[1748363829465,1.50639567,110400.0,110390.0,0.20956046]
[1748363829671,1.41581167,110400.0,110390.0,0.39065176]
[1748363829871,1.07581167,110400.0,110390.0,0.39065176]
[1748363830072,0.64737167,110400.0,110390.0,0.37656047]
[1748363830376,0.71489167,110400.0,110390.0,0.32772255]
[1748363830560,1.49639567,110400.0,110390.0,0.09]
[1748363830765,1.74739567,110400.0,110390.0,0.09]
[1748363830965,1.74739567,110400.0,110390.0,0.2710913]
[1748363830966,1.74839567,110400.0,110390.0,0.2710913]
[1748363831475,1.41839567,110400.0,110390.0,0.2710913]
[1748363831773,0.78925167,110400.0,110390.0,0.50287969]
[1748363831967,1.21769167,110400.0,110390.0,0.50287969]
[1748363832165,0.24749677,110400.0,110390.0,0.50287969]
[1748363832369,0.24749677,110400.0,110390.0,0.60991094]
[1748363832370,0.71701167,110400.0,110390.0,0.60991094]
[1748363832881,0.10737677,110400.0,110390.0,0.97071094]
[1748363833174,0.75937167,110400.0,110390.0,0.16076516]
[1748363833474,1.33360362,110400.0,110390.0,0.02830717]
[1748363833677,0.1811077,110380.0,110370.0,0.00149538]
[1748363833981,1.6811477,110380.0,110370.0,0.01149538]
[1748363834268,1.4435077,110380.0,110370.0,0.19261948]
[1748363834482,1.6013477,110380.0,110370.0,0.42440787]
[1748363834865,1.1729077,110380.0,110370.0,0.42440787]
[1748363835171,1.1729077,110380.0,110370.0,0.43440787]
[1748363835172,0.4514277,110380.0,110370.0,0.43440787]
[1748363835372,0.2813077,110380.0,110370.0,0.48870787]
[1748363835564,0.2814277,110380.0,110370.0,0.90611136]
[1748363836057,0.2814277,110380.0,110370.0,0.95781136]
[1748363836474,0.2813077,110380.0,110370.0,0.95781136]
[1748363836770,0.2814277,110380.0,110370.0,0.95781136]
[1748363836966,0.10032,110380.0,110370.0,0.95781136]
[1748363837170,0.05082,110380.0,110370.0,1.69130064]
[1748363837370,0.0533,110390.0,110380.0,0.1811077]
[1748363837579,0.106,110390.0,110380.0,1.25972765]
[1748363838080,0.10612,110390.0,110380.0,1.21188485]
[1748363840276,0.33048498,110400.0,110390.0,0.1810913]
[1748363840577,0.33048498,110400.0,110390.0,0.99507969]
[1748363840775,0.23994038,110400.0,110390.0,0.99507969]
[1748363841671,0.03135972,110420.0,110410.0,0.1810585]
[1748363841869,0.03135972,110420.0,110410.0,0.3210585]
[1748363841870,0.25766722,110420.0,110410.0,0.3210585]
[1748363842072,0.25766722,110420.0,110410.0,0.1806]
[1748363842285,0.61846722,110420.0,110410.0,0.38022559]
[1748363843168,0.62046722,110420.0,110410.0,0.38022559]
[1748363843475,0.72726722,110420.0,110410.0,0.38022559]
[1748363843679,0.73726722,110420.0,110410.0,0.38022762]
[1748363843977,0.73826722,110420.0,110410.0,0.38022762]
[1748363844482,0.73826722,110420.0,110410.0,0.43382762]
[1748363845470,0.73826722,110420.0,110410.0,0.14856912]
[1748363845766,0.1810585,110410.0,110400.0,8e-08]
[1748363846075,1.36584913,110410.0,110400.0,8e-08]
[1748363846269,1.4802745,110410.0,110400.0,8e-08]
[1748363846466,1.3766345,110410.0,110400.0,0.01000008]
[1748363846692,1.1396985,110410.0,110400.0,0.01000008]
[1748363846883,1.6586745,110410.0,110400.0,0.01000008]
[1748363847477,1.6587145,110410.0,110400.0,0.01000008]
[1748363848873,1.6588345,110410.0,110400.0,0.01000008]
[1748363849279,1.6598345,110410.0,110400.0,0.01000008]
[1748363850477,1.5692585,110410.0,110400.0,0.01000008]
[1748363850681,1.1418185,110410.0,110400.0,0.24397498]
[1748363850984,0.8816985,110410.0,110400.0,0.29707498]
[1748363851189,0.8818185,110410.0,110400.0,0.29707498]
[1748363851972,0.8818185,110410.0,110400.0,0.11600008]
[1748363853582,0.1810749,110400.0,110390.0,0.5603727]
[1748363853779,0.2827749,110400.0,110390.0,0.6803727]
[1748363854476,0.2827749,110400.0,110390.0,0.44852472]
[1748363855284,0.1017,110400.0,110390.0,0.85418346]
[1748363855479,0.54640191,110410.0,110400.0,0.1810749]
[1748363855788,0.54640191,110410.0,110400.0,0.58642288]
[1748363855789,0.64788191,110410.0,110400.0,0.58642288]
[1748363855977,0.64788191,110410.0,110400.0,0.3545749]
[1748363856178,0.64800191,110410.0,110400.0,0.3545749]
[1748363856781,0.64800191,110410.0,110400.0,0.4581749]
[1748363856986,0.64900191,110410.0,110400.0,0.4581749]
[1748363857282,0.64900191,110410.0,110400.0,0.3010749]
[1748363857283,0.87900191,110410.0,110400.0,0.3010749]
[1748363857876,0.88000191,110410.0,110400.0,0.3010749]
[1748363859682,0.88000191,110410.0,110400.0,0.3932749]
[1748363859880,0.88000191,110410.0,110400.0,0.2122]
[1748363860084,0.88000191,110410.0,110400.0,0.3932749]
[1748363860469,0.66000191,110410.0,110400.0,0.3932749]
[1748363860670,0.10814231,110410.0,110400.0,0.67872288]
[1748363860879,0.10802231,110410.0,110400.0,0.67872288]
[1748363861079,0.2847785,110410.0,110400.0,0.67872288]
[1748363861281,0.1036,110410.0,110400.0,0.67872288]
[1748363861481,0.2846585,110410.0,110400.0,0.67872288]
[1748363861697,0.2847785,110410.0,110400.0,0.73521164]
[1748363861871,0.00212,110410.0,110400.0,0.73521164]
[1748363862075,0.00654231,110410.0,110400.0,1.09601164]
[1748363862288,0.00642231,110410.0,110400.0,1.19965164]
[1748363862672,0.00654231,110410.0,110400.0,1.53148288]
[1748363862873,0.00654231,110410.0,110400.0,1.83148902]
[1748363863079,0.00654231,110410.0,110400.0,1.88797778]
[1748363863284,0.00654231,110410.0,110400.0,1.83148902]
[1748363863586,0.00654231,110410.0,110400.0,1.88797778]
[1748363863787,0.00454231,110410.0,110400.0,1.88797778]
[1748363864280,0.00442231,110410.0,110400.0,1.83148902]
[1748363864491,0.00442231,110410.0,110400.0,1.88807869]
[1748363864681,0.00454231,110410.0,110400.0,1.88807869]
[1748363864980,0.00454231,110410.0,110400.0,1.95068025]
[1748363865878,0.18560081,110410.0,110400.0,1.41872025]
[1748363866085,0.23860081,110410.0,110400.0,1.95064025]
[1748363866272,0.00454231,110410.0,110400.0,1.95064025]
[1748363866475,0.00454231,110410.0,110400.0,1.90222238]
[1748363866676,0.00454231,110410.0,110400.0,1.83145722]
[1748363867979,0.00454231,110410.0,110400.0,1.83445722]
[1748363869209,0.00454231,110410.0,110400.0,1.99770284]
[1748363869377,0.00454231,110410.0,110400.0,2.09720929]
[1748363869781,0.00442231,110410.0,110400.0,2.32905727]
[1748363869988,0.00442231,110410.0,110400.0,2.31716945]
[1748363870178,0.00454231,110410.0,110400.0,2.31716945]
[1748363871092,0.00454231,110410.0,110400.0,2.20231719]
[1748363871284,0.00454231,110410.0,110400.0,2.20227719]
[1748363871880,0.00454231,110410.0,110400.0,1.74106238]
[1748363872088,0.00454231,110410.0,110400.0,1.64155593]
[1748363872290,0.00454231,110410.0,110400.0,2.17339593]
[1748363872588,0.00454231,110410.0,110400.0,1.64155593]
[1748363872781,0.00454231,110410.0,110400.0,2.17339593]
[1748363873196,0.00454231,110410.0,110400.0,2.17338402]
[1748363873690,0.0314959,110420.0,110410.0,0.1810595]
[1748363873891,0.0314959,110420.0,110410.0,1.53342598]
[1748363874183,0.0316159,110420.0,110410.0,1.53342598]
[1748363875383,0.0314959,110420.0,110410.0,1.53342598]
[1748363875585,0.0316159,110420.0,110410.0,1.53342598]
[1748363876382,0.0316159,110420.0,110410.0,1.35236648]
[1748363876589,0.0316159,110420.0,110410.0,1.53342598]
[1748363876792,0.0316159,110420.0,110410.0,1.30752191]
[1748363876977,0.0316159,110420.0,110410.0,1.53342598]
[1748363877182,0.2126589,110420.0,110410.0,2.06514598]
[1748363877383,0.0817159,110420.0,110410.0,2.06514598]
[1748363877883,0.0817159,110420.0,110410.0,2.07877023]
[1748363878193,0.0316159,110420.0,110410.0,2.07877023]
[1748363878689,0.0316159,110420.0,110410.0,1.98451727]
[1748363880490,0.0316159,110420.0,110410.0,1.93616718]
[1748363881103,0.0811159,110420.0,110410.0,1.93616718]
[1748363881286,0.0811159,110420.0,110410.0,1.40444718]
[1748363881599,0.0811159,110420.0,110410.0,1.98449369]
[1748363881785,0.0811159,110420.0,110410.0,1.50605162]
[1748363882105,0.3631584,110420.0,110410.0,1.86018962]
[1748363882289,0.1321159,110420.0,110410.0,2.08609369]
[1748363882786,0.313159,110420.0,110410.0,2.08609369]
[1748363883088,0.1321159,110420.0,110410.0,2.08609369]
[1748363883287,0.313159,110420.0,110410.0,1.55441369]
[1748363883503,0.313159,110420.0,110410.0,2.08609369]
[1748363884206,0.361559,110420.0,110410.0,2.03773162]
[1748363884382,0.36598131,110420.0,110410.0,2.03773162]
[1748363885000,0.36598131,110420.0,110410.0,1.50605162]
[1748363885196,0.36598131,110420.0,110410.0,1.81182755]
[1748363885393,0.36598131,110420.0,110410.0,1.50605162]
[1748363885595,0.36598131,110420.0,110410.0,2.03769162]
[1748363885796,0.36598131,110420.0,110410.0,2.03770139]
[1748363886194,0.36598131,110420.0,110410.0,2.01768996]
[1748363886999,0.36598131,110420.0,110410.0,2.06608104]
[1748363887193,0.36598131,110420.0,110410.0,2.35798104]
[1748363887395,0.36598131,110420.0,110410.0,2.30958996]
[1748363887595,0.36598131,110420.0,110410.0,2.28732068]
[1748363887888,0.36598131,110420.0,110410.0,1.84641406]
[1748363888090,0.36462159,110420.0,110410.0,0.57102929]
[1748363888307,0.85542159,110420.0,110410.0,0.52263338]
[1748363888493,0.71462159,110420.0,110410.0,0.21661787]
[1748363888699,1.07542159,110420.0,110410.0,0.39767727]
[1748363888890,0.71462159,110420.0,110410.0,0.39767727]
[1748363889195,1.07542159,110420.0,110410.0,0.39767727]
[1748363889395,1.50350159,110420.0,110410.0,0.39767727]
[1748363890304,0.84542159,110420.0,110410.0,0.39767727]
[1748363891713,0.84542159,110420.0,110410.0,0.37765368]
[1748363891894,0.84542159,110420.0,110410.0,0.39769266]
[1748363892313,1.27350159,110420.0,110410.0,0.39769266]